[Event "World Women Teams Championship"]
[Site "Sitges, Spain"]
[Date "2021.09.27"]
[Round "1.12"]
[White "Kulkarni Bhakti (IND)"]
[Black "Mamedjarova Turkan (AZE)"]
[Result "0-1"]
[TimeControl "40+10"]
[WhiteElo "2325"]
[BlackElo "2243"]

1. d4 {[%clk 00:45:10]} {[%emt 00:00:09]} Nf6 {[%clk 00:45:11]} {[%emt
00:00:10]} 2. c4 {[%clk 00:44:50]} {[%emt 00:00:30]} e6 {[%clk 00:45:01]}
{[%emt 00:00:20]} 3. Nc3 {[%clk 00:44:40]} {[%emt 00:00:19]} Bb4 {[%clk
00:44:59]} {[%emt 00:00:13]} 4. Nf3 {[%clk 00:43:23]} {[%emt 00:01:27]} b6
{[%emt 00:05:41]} 5. g3 {[%clk 00:37:59]} {[%emt 00:05:04]} Bb7 {[%clk
00:39:49]} {[%emt 00:00:19]} 6. Bg2 {[%clk 00:38:03]} {[%emt 00:00:06]} O-O
{[%clk 00:31:36]} {[%emt 00:08:24]} 7. O-O {[%clk 00:37:58]} {[%emt 00:00:14]}
Bxc3 {[%clk 00:28:05]} {[%emt 00:03:42]} 8. bxc3 {[%clk 00:38:05]} {[%emt
00:00:01]} d6 {[%clk 00:27:51]} {[%emt 00:00:25]} 9. Re1 {[%clk 00:31:27]}
{[%emt 00:06:47]} Nbd7 {[%clk 00:25:59]} {[%emt 00:02:03]} 10. Ba3 {[%clk
00:29:50]} {[%emt 00:01:46]} Re8 {[%clk 00:25:55]} {[%emt 00:00:16]} 11. Qc2
{[%emt 00:02:43]} Be4 {[%clk 00:23:17]} {[%emt 00:02:24]} 12. Qa4 {[%clk
00:27:25]} {[%emt 00:00:25]} Qc8 {[%emt 00:00:26]} 13. Bh3 {[%clk 00:25:15]}
{[%emt 00:02:10]} Bf5 {[%emt 00:04:28]} 14. Bg2 {[%clk 00:22:58]} {[%emt
00:00:35]} Be4 {[%emt 00:00:42]} 15. Bf1 {[%emt 00:02:34]} Qb7 {[%clk
00:18:36]} {[%emt 00:00:08]} 16. Nd2 {[%clk 00:21:37]} {[%emt 00:00:46]} Bc6
{[%clk 00:18:10]} {[%emt 00:00:37]} 17. Qb3 {[%emt 00:07:40]} a5 {[%emt
00:04:24]} 18. Qc2 {[%clk 00:12:00]} {[%emt 00:00:17]} d5 {[%clk 00:13:41]}
{[%emt 00:02:24]} 19. f3 {[%clk 00:08:45]} {[%emt 00:03:24]} Nf8 {[%clk
00:10:24]} {[%emt 00:03:28]} 20. e4 {[%clk 00:08:39]} {[%emt 00:00:15]} dxe4
{[%clk 00:10:28]} {[%emt 00:00:07]} 21. fxe4 {[%clk 00:08:37]} {[%emt
00:00:11]} e5 {[%clk 00:10:35]} {[%emt 00:00:04]} 22. d5 {[%clk 00:07:58]}
{[%emt 00:00:50]} Bd7 {[%clk 00:10:43]} {[%emt 00:00:02]} 23. c5 {[%clk
00:07:43]} {[%emt 00:00:24]} bxc5 {[%clk 00:10:07]} {[%emt 00:00:47]} 24. Bxc5
{[%emt 00:01:11]} Qc8 {[%clk 00:09:01]} {[%emt 00:00:35]} 25. Nc4 {[%clk
00:06:42]} {[%emt 00:00:49]} Ng6 {[%clk 00:07:22]} {[%emt 00:01:50]} 26. Rab1
{[%emt 00:00:28]} h5 {[%emt 00:00:34]} 27. h4 {[%clk 00:06:09]} {[%emt
00:00:32]} Bh3 {[%clk 00:06:05]} {[%emt 00:00:56]} 28. Ne3 {[%clk 00:04:50]}
{[%emt 00:01:28]} Bxf1 {[%clk 00:05:12]} {[%emt 00:01:04]} 29. Nxf1 {[%clk
00:03:50]} {[%emt 00:01:10]} Qg4 {[%clk 00:05:06]} {[%emt 00:00:16]} 30. Qg2
{[%clk 00:03:42]} {[%emt 00:00:17]} Rab8 {[%clk 00:04:58]} {[%emt 00:00:19]} 31.
Nd2 {[%clk 00:03:13]} {[%emt 00:00:39]} Qd7 {[%emt 00:00:56]} 32. Nc4 {[%clk
00:02:11]} {[%emt 00:00:36]} Rb5 {[%clk 00:04:02]} {[%emt 00:00:56]} 33. Ba3
{[%clk 00:01:37]} {[%emt 00:00:44]} Reb8 {[%clk 00:03:39]} {[%emt 00:00:33]} 34.
Nd2 {[%clk 00:01:43]} {[%emt 00:00:04]} Rxb1 {[%clk 00:03:38]} {[%emt
00:00:11]} 35. Nxb1 {[%clk 00:01:24]} {[%emt 00:00:29]} Qa4 {[%clk 00:03:34]}
{[%emt 00:00:14]} 36. Bc5 {[%clk 00:00:58]} {[%emt 00:00:36]} Qc4 {[%clk
00:03:07]} {[%emt 00:00:37]} 37. Bf2 {[%clk 00:00:24]} {[%emt 00:00:44]} Qxa2
{[%clk 00:03:06]} {[%emt 00:00:11]} 38. Qf1 {[%emt 00:00:36]} Nxe4 {[%clk
00:02:24]} {[%emt 00:00:29]} 39. Ba7 {[%clk 00:00:14]} {[%emt 00:00:16]} Rb7
{[%clk 00:02:09]} {[%emt 00:00:26]} 40. Rxe4 {[%clk 00:00:16]} {[%emt
00:00:08]} Rxb1 {[%clk 00:02:07]} {[%emt 00:00:12]} 41. Re1 {[%clk 00:00:25]}
Rxe1 {[%clk 00:02:03]} {[%emt 00:00:14]} 42. Qxe1 {[%clk 00:00:33]} {[%emt
00:00:02]} Qxd5 {[%clk 00:02:12]} 43. Qb1 {[%emt 00:00:26]} Qf3 {[%emt
00:00:25]} 44. Qe1 {[%clk 00:00:23]} {[%emt 00:00:04]} e4 {[%clk 00:01:43]}
{[%emt 00:00:24]} 45. Bb8 {[%clk 00:00:22]} {[%emt 00:00:11]} a4 {[%clk
00:01:40]} {[%emt 00:00:14]} 46. Bxc7 {[%clk 00:00:26]} {[%emt 00:00:05]} a3
{[%clk 00:01:49]} {[%emt 00:00:01]} 47. Qa1 {[%clk 00:00:27]} {[%emt 00:00:09]}
e3 {[%clk 00:01:39]} {[%emt 00:00:20]} 48. Qxa3 {[%clk 00:00:24]} {[%emt
00:00:14]} Qf2+ {[%clk 00:01:35]} {[%emt 00:00:13]} 49. Kh1 {[%clk 00:00:33]}
{[%emt 00:00:02]} e2 {[%clk 00:01:41]} {[%emt 00:00:04]} 50. Qa8+ {[%clk
00:00:39]} {[%emt 00:00:04]} Kh7 {[%clk 00:01:49]} {[%emt 00:00:02]} 0-1
[ePGN "0.1;DGT LiveChess/2.2.5"]

[Event "World Women Teams  Championship"]
[Site "Sitges, Spain"]
[Date "2021.09.27"]
[Round "1.1"]
[White "Muzychuk Anna (UKR)"]
[Black "Dzagnidze Nana (GEO)"]
[Result "1/2-1/2"]
[TimeControl "40+10"]
[WhiteElo "2537"]
[BlackElo "2455"]

1. e4 {[%emt 02:54:33]} c5 {[%emt 00:00:03]} 2. Nf3 {[%emt 00:00:04]} e6 {[%emt
00:00:04]} 3. d4 {[%emt 00:00:17]} cxd4 {[%emt 00:00:04]} 4. Nxd4 {[%emt
00:00:06]} a6 {[%emt 00:00:05]} 5. Bd3 {[%emt 00:00:38]} Nf6 {[%emt 00:00:08]}
6. O-O {[%emt 00:00:34]} e5 {[%emt 00:00:14]} 7. Bg5 {[%emt 00:02:56]} d6
{[%emt 00:00:09]} 8. Nf5 {[%emt 00:03:06]} Nbd7 {[%emt 00:01:26]} 9. Nc3 {[%emt
00:02:01]} h6 {[%emt 00:02:37]} 10. Bh4 {[%emt 00:00:19]} g6 {[%emt 00:00:08]}
11. Ne3 {[%emt 00:00:33]} Be7 {[%emt 00:00:34]} 12. f3 {[%emt 00:03:44]} O-O
{[%emt 00:02:38]} 13. Bf2 {[%emt 00:00:53]} Nb6 {[%emt 00:07:15]} 14. a4 {[%emt
00:02:42]} Be6 {[%emt 00:00:16]} 15. a5 {[%emt 00:00:39]} Nbd7 {[%emt
00:00:12]} 16. Bc4 {[%emt 00:00:46]} Rc8 {[%emt 00:00:11]} 17. Ncd5 {[%emt
00:06:46]} Kg7 {[%emt 00:03:31]} 18. Qe2 {[%emt 00:00:54]} Nb8 {[%emt
00:07:32]} 19. Nb6 {[%emt 00:03:35]} Rc6 {[%emt 00:01:15]} 20. Rfd1 {[%emt
00:01:43]} Nbd7 {[%emt 00:03:00]} 21. Nbd5 {[%emt 00:00:52]} Re8 {[%emt
00:00:01]} 22. b4 {[%emt 00:01:59]} Qc8 {[%emt 00:05:00]} 23. Bb3 {[%emt
00:01:24]} Bxd5 {[%emt 00:00:16]} 24. Nxd5 {[%emt 00:04:11]} Nxd5 {[%emt
00:00:05]} 25. Rxd5 {[%emt 00:00:17]} Rc3 {[%emt 00:00:42]} 26. Rad1 {[%emt
00:03:07]} Nf8 {[%emt 00:00:16]} 27. Ba4 {[%emt 00:01:13]} Ne6 {[%emt
00:00:47]} 28. Bxe8 {[%emt 00:02:02]} Nf4 {[%emt 00:00:02]} 29. Qd2 {[%emt
00:00:41]} Rxc2 {[%emt 00:01:46]} 30. Bd7 {[%emt 00:00:06]} Qc7 {[%emt
00:02:01]} 31. Bb6 {[%emt 00:00:10]} Qc4 {[%emt 00:00:19]} 32. Qe1 {[%emt
00:00:11]} Rxg2+ {[%emt 00:01:31]} 33. Kh1 Re2 {[%emt 00:02:14]} 34. Qf1 {[%emt
00:00:40]} Qa2 {[%emt 00:02:29]} 35. Bg1 {[%emt 00:00:02]} Nxd5 {[%emt
00:00:16]} 36. exd5 {[%emt 00:00:36]} Bg5 {[%emt 00:00:05]} 37. Bc8 {[%emt
00:01:09]} Bf4 {[%emt 00:00:11]} 38. Qh3 {[%emt 00:00:23]} Qb3 {[%emt
00:00:15]} 39. Rf1 {[%emt 00:00:05]} Qxd5 {[%emt 00:00:03]} 40. Rf2 {[%emt
00:00:14]} Re1 {[%emt 00:00:11]} 41. Rf1 {[%emt 00:00:01]} Re2 {[%emt
00:00:23]} 42. Rf2 Re1 {[%emt 00:00:32]} 43. Rf1 1/2-1/2

[Event "World Women Teams  Championship"]
[Site "Sitges, Spain"]
[Date "2021.09.27"]
[Round "1.2"]
[White "Batsiashvili Nino (GEO)"]
[Black "Muzychuk Mariya (UKR)"]
[Result "1-0"]
[TimeControl "40+10"]
[WhiteElo "2371"]
[BlackElo "2496"]

1. c4 {[%emt 00:02:13]} e5 {[%clk 00:43:34]} {[%emt 00:00:07]} 2. Nc3 {[%clk
00:45:20]} {[%emt 00:00:07]} Nc6 {[%emt 00:00:15]} 3. Nf3 {[%emt 00:00:52]} Nf6
{[%emt 00:00:02]} 4. e4 {[%emt 00:03:14]} Bc5 {[%clk 00:39:55]} {[%emt
00:00:06]} 5. Nxe5 {[%clk 00:45:17]} {[%emt 00:00:14]} Nxe5 {[%clk 00:40:01]}
{[%emt 00:00:03]} 6. d4 {[%clk 00:45:29]} {[%emt 00:02:28]} Bxd4 {[%clk
00:37:40]} 7. Qxd4 {[%clk 00:43:51]} {[%emt 00:00:39]} d6 8. Be2 {[%clk
00:43:00]} {[%emt 00:03:26]} h6 {[%clk 00:35:58]} 9. O-O {[%clk 00:39:05]}
{[%emt 00:01:27]} O-O 10. f4 {[%emt 00:04:30]} Nc6 {[%clk 00:35:08]} {[%emt
00:00:15]} 11. Qd1 {[%emt 00:01:56]} a6 {[%emt 00:02:17]} 12. Bf3 {[%clk
00:38:04]} {[%emt 00:00:01]} Bd7 {[%emt 00:00:40]} 13. b3 {[%clk 00:36:06]}
{[%emt 00:00:17]} Re8 14. Re1 {[%emt 00:06:41]} Rb8 {[%emt 00:00:06]} 15. Bb2
{[%clk 00:35:49]} {[%emt 00:00:25]} b5 {[%clk 00:26:40]} 16. Nd5 {[%clk
00:34:55]} Nxd5 {[%clk 00:26:48]} 17. cxd5 {[%clk 00:32:17]} {[%emt 00:02:31]}
Ne7 {[%clk 00:24:24]} 18. e5 {[%clk 00:32:22]} dxe5 19. fxe5 {[%emt 00:06:44]}
Nf5 {[%clk 00:18:14]} {[%emt 00:01:50]} 20. Qd2 Nh4 {[%emt 00:05:29]} 21. Bh5
{[%clk 00:30:21]} {[%emt 00:00:12]} Bf5 {[%clk 00:18:12]} {[%emt 00:00:12]} 22.
Rf1 {[%clk 00:25:23]} {[%emt 00:01:39]} 1-0

[Event "World Women Teams  Championship"]
[Site "Sitges, Spain"]
[Date "2021.09.27"]
[Round "1.4"]
[White "Javakhishvili Lela (GEO)"]
[Black "Osmak Iulija (UKR)"]
[Result "1-0"]
[TimeControl "40+10"]
[WhiteElo "2364"]
[BlackElo "2302"]

1. d4 {[%clk 00:45:17]} {[%emt 00:00:02]} Nf6 {[%clk 00:45:18]} {[%emt
00:00:02]} 2. c4 {[%clk 00:45:23]} {[%emt 00:00:04]} e6 {[%clk 00:45:27]}
{[%emt 00:00:02]} 3. Nf3 {[%clk 00:45:28]} {[%emt 00:00:05]} b6 {[%clk
00:45:35]} {[%emt 00:00:02]} 4. g3 {[%clk 00:45:31]} {[%emt 00:00:07]} Bb7
{[%clk 00:45:43]} {[%emt 00:00:02]} 5. Bg2 {[%clk 00:45:39]} {[%emt 00:00:02]}
Be7 {[%clk 00:45:51]} {[%emt 00:00:02]} 6. O-O {[%clk 00:45:45]} {[%emt
00:00:03]} O-O {[%clk 00:45:58]} {[%emt 00:00:03]} 7. Nc3 {[%clk 00:45:48]}
{[%emt 00:00:07]} Ne4 {[%clk 00:45:54]} {[%emt 00:00:14]} 8. Bd2 {[%clk
00:45:53]} {[%emt 00:00:05]} Bf6 {[%clk 00:45:44]} {[%emt 00:00:20]} 9. Rc1
{[%clk 00:45:59]} {[%emt 00:00:04]} d6 {[%clk 00:45:25]} {[%emt 00:00:30]} 10.
d5 {[%clk 00:45:21]} {[%emt 00:00:48]} Nxc3 {[%clk 00:41:22]} {[%emt 00:04:13]}
11. Bxc3 {[%clk 00:45:26]} {[%emt 00:00:05]} Bxc3 {[%clk 00:41:30]} {[%emt
00:00:02]} 12. Rxc3 {[%clk 00:45:33]} {[%emt 00:00:02]} e5 {[%clk 00:41:35]}
{[%emt 00:00:06]} 13. b4 {[%clk 00:44:51]} {[%emt 00:00:52]} a5 {[%clk
00:41:37]} {[%emt 00:00:08]} 14. a3 {[%clk 00:44:57]} {[%emt 00:00:04]} Nd7
{[%clk 00:41:11]} {[%emt 00:00:35]} 15. Nd2 {[%clk 00:42:09]} {[%emt 00:02:58]}
f5 {[%clk 00:33:04]} {[%emt 00:08:17]} 16. Nb3 {[%clk 00:42:12]} {[%emt
00:00:07]} axb4 {[%clk 00:33:03]} {[%emt 00:00:12]} 17. axb4 {[%clk 00:42:20]}
{[%emt 00:00:02]} Ra3 {[%clk 00:30:46]} {[%emt 00:02:26]} 18. Qd2 {[%clk
00:39:12]} {[%emt 00:03:18]} Qa8 {[%clk 00:28:52]} {[%emt 00:02:04]} 19. c5
{[%clk 00:38:22]} {[%emt 00:01:00]} Ra2 {[%clk 00:27:19]} {[%emt 00:01:44]} 20.
Qd1 {[%clk 00:36:39]} {[%emt 00:01:52]} Nf6 {[%clk 00:21:43]} {[%emt 00:05:46]}
21. c6 {[%clk 00:32:12]} {[%emt 00:04:37]} Bc8 {[%clk 00:21:07]} {[%emt
00:00:46]} 22. Nc1 {[%clk 00:29:35]} {[%emt 00:02:47]} Ra1 {[%clk 00:17:19]}
{[%emt 00:03:59]} 23. Qb3 {[%clk 00:29:43]} {[%emt 00:00:02]} Ne4 {[%clk
00:15:01]} {[%emt 00:02:28]} 24. Rc2 {[%clk 00:29:24]} {[%emt 00:00:29]} Ra3
{[%clk 00:14:43]} {[%emt 00:00:28]} 25. Qb2 {[%clk 00:29:27]} {[%emt 00:00:06]}
Qa4 {[%clk 00:14:41]} {[%emt 00:00:12]} 26. f4 {[%clk 00:26:22]} {[%emt
00:03:15]} exf4 {[%clk 00:13:13]} {[%emt 00:01:38]} 27. Rxf4 {[%clk 00:26:11]}
{[%emt 00:00:22]} Nf6 {[%clk 00:11:42]} {[%emt 00:01:40]} 28. b5 {[%clk
00:25:08]} {[%emt 00:01:13]} Qa5 {[%clk 00:10:54]} {[%emt 00:00:58]} 29. Nb3
{[%clk 00:24:45]} {[%emt 00:00:33]} Qe1+ {[%clk 00:11:00]} {[%emt 00:00:05]} 30.
Rf1 {[%clk 00:14:07]} {[%emt 00:10:47]} Qb4 {[%clk 00:10:59]} {[%emt 00:00:11]}
31. Nd4 {[%clk 00:14:05]} {[%emt 00:00:12]} Qxb2 {[%clk 00:06:34]} {[%emt
00:04:36]} 32. Rxb2 {[%clk 00:14:13]} {[%emt 00:00:02]} Ng4 {[%clk 00:06:38]}
{[%emt 00:00:05]} 33. Rbb1 {[%clk 00:12:10]} {[%emt 00:02:12]} Ra4 {[%clk
00:06:09]} {[%emt 00:00:40]} 34. Rfd1 {[%clk 00:10:39]} {[%emt 00:01:41]} f4
{[%clk 00:03:46]} {[%emt 00:02:33]} 35. Ra1 {[%clk 00:10:47]} {[%emt 00:00:02]}
Rc4 {[%clk 00:01:30]} {[%emt 00:02:26]} 36. Bf3 {[%clk 00:08:24]} {[%emt
00:02:33]} fxg3 {[%clk 00:00:44]} {[%emt 00:00:56]} 37. hxg3 {[%clk 00:08:04]}
{[%emt 00:00:30]} Ne3 {[%clk 00:00:24]} {[%emt 00:00:30]} 38. Rd3 {[%clk
00:07:48]} {[%emt 00:00:25]} Nf5 {[%clk 00:00:14]} {[%emt 00:00:21]} 39. Nxf5
{[%clk 00:07:16]} {[%emt 00:00:42]} Bxf5 {[%clk 00:00:23]} {[%emt 00:00:02]} 40.
Re3 {[%clk 00:07:25]} Bg4 {[%clk 00:00:13]} {[%emt 00:00:20]} 41. Ra7 {[%clk
00:07:00]} {[%emt 00:00:35]} Bxf3 {[%clk 00:00:22]} {[%emt 00:00:02]} 42. exf3
{[%clk 00:07:07]} {[%emt 00:00:02]} Rc2 {[%clk 00:00:15]} {[%emt 00:00:18]} 43.
Rxc7 {[%clk 00:05:12]} {[%emt 00:02:05]} Ra8 {[%clk 00:00:19]} {[%emt
00:00:06]} 44. Rce7 {[%clk 00:05:04]} {[%emt 00:00:16]} Kf8 {[%clk 00:00:14]}
{[%emt 00:00:16]} 45. Re2 {[%clk 00:04:33]} {[%emt 00:00:40]} Rc5 {[%clk
00:00:11]} {[%emt 00:00:14]} 46. Rd7 {[%clk 00:03:46]} {[%emt 00:00:57]} Rxd5
{[%clk 00:00:17]} {[%emt 00:00:04]} 47. c7 {[%clk 00:03:48]} {[%emt 00:00:09]}
Ra1+ {[%clk 00:00:12]} {[%emt 00:00:15]} 48. Kf2 {[%clk 00:03:51]} {[%emt
00:00:06]} Rc5 {[%clk 00:00:20]} {[%emt 00:00:02]} 49. Rd8+ {[%clk 00:03:59]}
{[%emt 00:00:03]} 1-0

[Event "World Women Teams  Championship"]
[Site "Sitges, Spain"]
[Date "2021.09.27"]
[Round "1.5"]
[White "Cori T. Deysi (AME)"]
[Black "Zawadzka Jolanta (POL)"]
[Result "1-0"]
[TimeControl "40+10"]
[WhiteElo "2340"]
[BlackElo "2313"]

1. d4 {[%clk 00:45:15]} {[%emt 40:36:48]} d5 {[%clk 00:45:16]} 2. Nf3 {[%clk
00:45:14]} {[%emt 00:00:15]} Nc6 {[%clk 00:45:23]} 3. c4 {[%clk 00:45:18]}
{[%emt 00:00:10]} e6 {[%clk 00:45:30]} 4. Nc3 {[%clk 00:43:49]} {[%emt
00:01:41]} Bb4 {[%clk 00:45:29]} 5. Qa4 {[%clk 00:43:49]} Nf6 {[%clk 00:45:29]}
6. Ne5 {[%clk 00:43:49]} Bd7 {[%clk 00:45:29]} 7. Nxc6 {[%clk 00:43:49]} Bxc3+
{[%clk 00:45:29]} 8. bxc3 {[%clk 00:43:49]} Bxc6 {[%clk 00:45:29]} 9. Qa3
{[%clk 00:43:49]} dxc4 {[%clk 00:45:29]} 10. f3 {[%clk 00:43:49]} b5 {[%clk
00:45:29]} 11. e4 {[%clk 00:43:49]} Qd6 {[%clk 00:45:29]} 12. Qa5 {[%clk
00:43:49]} Nd7 {[%clk 00:45:29]} 13. a4 {[%clk 00:43:49]} Nb6 {[%clk 00:45:29]}
14. axb5 {[%clk 00:43:49]} Bb7 {[%clk 00:45:29]} 15. Ba3 {[%clk 00:13:00]}
{[%emt 00:52:26]} Qd7 {[%clk 00:24:08]} 16. Bc5 {[%clk 00:11:39]} {[%emt
00:05:06]} f5 {[%clk 00:23:48]} 17. exf5 {[%clk 00:11:39]} Kf7 {[%clk
00:23:48]} 18. Kf2 {[%clk 00:11:39]} Rhe8 {[%clk 00:23:48]} 19. Qb4 {[%clk
00:11:39]} Nd5 {[%clk 00:23:48]} 20. Qxc4 {[%clk 00:11:39]} exf5 {[%clk
00:23:48]} 21. Bd3 {[%clk 00:05:45]} {[%emt 00:13:44]} Kf6 {[%clk 00:17:04]} 22.
Rhe1 {[%clk 00:05:45]} Nf4 {[%clk 00:17:04]} 23. Bf1 {[%clk 00:05:45]} Rxe1
{[%clk 00:17:04]} 24. Rxe1 {[%clk 00:05:45]} a6 {[%clk 00:17:04]} 25. d5 {[%clk
00:05:45]} Ng6 {[%clk 00:17:04]} 26. Bd4+ {[%clk 00:05:45]} Kg5 {[%clk
00:17:04]} 27. Be3+ {[%clk 00:05:45]} Kf6 {[%clk 00:17:04]} 28. Bd4+ {[%clk
00:05:45]} Kg5 {[%clk 00:17:04]} 29. f4+ {[%clk 00:05:45]} Kh6 {[%clk
00:17:04]} 30. Qd3 {[%clk 00:05:45]} Nxf4 {[%clk 00:17:04]} 31. Be3 {[%clk
00:05:45]} g5 {[%clk 00:17:04]} 32. Bxf4 {[%clk 00:05:45]} gxf4 {[%clk
00:17:04]} 33. Re6+ {[%clk 00:05:45]} Kg7 {[%clk 00:17:04]} 34. Qxf5 {[%clk
00:05:45]} Qf7 {[%clk 00:17:04]} 35. Qe5+ {[%clk 00:05:45]} Kg8 {[%clk
00:17:04]} 36. bxa6 {[%clk 00:05:45]} Qf8 {[%clk 00:17:04]} 37. axb7 {[%clk
00:05:45]} Qc5+ {[%clk 00:17:04]} 38. Qd4 {[%clk 00:05:45]} 1-0

[Event "World Women Teams  Championship"]
[Site "Sitges, Spain"]
[Date "2021.09.27"]
[Round "1.6"]
[White "Socko Monika (POL)"]
[Black "Lujan Carolina (AME)"]
[Result "1/2-1/2"]
[TimeControl "40+10"]
[WhiteElo "2293"]
[BlackElo "2375"]

1. d4 {[%clk 00:45:17]} Nf6 {[%clk 00:45:16]} {[%emt 00:18:33]} 2. c4 {[%emt
00:00:04]} g6 {[%clk 00:45:22]} {[%emt 00:00:03]} 3. Nc3 {[%clk 00:45:33]}
{[%emt 00:00:02]} d5 {[%clk 00:45:27]} {[%emt 00:00:04]} 4. cxd5 {[%clk
00:45:40]} {[%emt 00:00:02]} Nxd5 {[%emt 00:00:09]} 5. Bd2 {[%emt 00:00:14]}
Nb6 {[%emt 00:00:14]} 6. e3 {[%clk 00:45:42]} {[%emt 00:00:02]} Bg7 {[%clk
00:45:31]} {[%emt 00:00:06]} 7. h4 {[%emt 00:04:41]} h5 {[%clk 00:38:12]}
{[%emt 00:02:52]} 8. Nf3 {[%clk 00:45:32]} {[%emt 00:00:26]} Nc6 {[%emt
00:05:05]} 9. Ng5 {[%emt 00:08:24]} e5 {[%emt 00:03:58]} 10. d5 {[%emt
00:01:28]} Ne7 {[%emt 00:04:06]} 11. e4 {[%clk 00:30:20]} {[%emt 00:01:36]} c6
12. Be3 {[%emt 00:06:12]} cxd5 {[%clk 00:23:59]} {[%emt 00:00:06]} 13. exd5
{[%emt 00:03:33]} O-O {[%emt 00:04:55]} 14. Qb3 {[%clk 00:22:18]} {[%emt
00:04:24]} Nf5 {[%emt 00:04:15]} 15. Bxb6 {[%clk 00:18:29]} {[%emt 00:01:36]}
axb6 {[%clk 00:17:35]} {[%emt 00:00:32]} 16. Bd3 {[%emt 00:04:11]} Nxh4 {[%clk
00:12:37]} {[%emt 00:01:01]} 17. Rxh4 {[%clk 00:18:28]} {[%emt 00:00:17]} Qxg5
{[%clk 00:12:46]} {[%emt 00:00:02]} 18. g3 {[%clk 00:18:37]} {[%emt 00:00:01]}
Bf5 {[%clk 00:10:41]} {[%emt 00:02:15]} 19. Be2 {[%clk 00:16:59]} {[%emt
00:01:47]} Rac8 {[%clk 00:09:20]} {[%emt 00:01:31]} 20. Rd1 {[%emt 00:03:57]}
Rfd8 {[%emt 00:02:36]} 21. Qxb6 {[%clk 00:13:12]} {[%emt 00:01:29]} e4 {[%clk
00:04:26]} {[%emt 00:01:20]} 22. Nxe4 {[%clk 00:11:52]} {[%emt 00:01:29]} Bxe4
{[%clk 00:04:35]} {[%emt 00:00:02]} 23. Rxe4 {[%clk 00:12:00]} {[%emt
00:00:02]} Rxd5 {[%clk 00:04:25]} {[%emt 00:00:20]} 24. Qxb7 {[%clk 00:09:48]}
{[%emt 00:02:21]} Rxd1+ {[%clk 00:02:44]} {[%emt 00:01:50]} 25. Bxd1 {[%clk
00:09:56]} {[%emt 00:00:03]} Rd8 {[%clk 00:02:43]} {[%emt 00:00:11]} 26. Rf4
{[%clk 00:05:54]} {[%emt 00:04:12]} Qa5+ {[%clk 00:02:27]} {[%emt 00:00:26]} 27.
Qb4 {[%clk 00:05:40]} {[%emt 00:00:24]} Qxa2 {[%clk 00:00:35]} {[%emt
00:02:02]} 28. Qb3 {[%clk 00:05:44]} {[%emt 00:00:06]} Qxb3 {[%clk 00:00:38]}
{[%emt 00:00:08]} 29. Bxb3 {[%clk 00:05:53]} Rd7 {[%clk 00:00:38]} {[%emt
00:00:09]} 30. Rb4 {[%clk 00:05:16]} {[%emt 00:00:47]} Bxb2 {[%clk 00:00:36]}
{[%emt 00:00:12]} 31. Bxf7+ {[%clk 00:05:15]} {[%emt 00:00:11]} 1/2-1/2

[Event "World Women Teams  Championship"]
[Site "Sitges, Spain"]
[Date "2021.09.27"]
[Round "1.7"]
[White "Perez Rodriguez Jennifer (AME)"]
[Black "Kulon Klaudia (POL)"]
[Result "0-1"]
[TimeControl "40+10"]
[WhiteElo "2150"]
[BlackElo "2234"]

1. e4 {[%clk 00:45:14]} {[%emt 00:00:06]} e5 {[%clk 00:45:17]} {[%emt
00:00:03]} 2. Nf3 {[%clk 00:45:17]} {[%emt 00:00:07]} Nc6 {[%clk 00:45:22]}
{[%emt 00:00:05]} 3. Bc4 {[%clk 00:45:16]} {[%emt 00:00:11]} Nf6 {[%clk
00:45:25]} {[%emt 00:00:07]} 4. d4 {[%clk 00:45:14]} {[%emt 00:00:13]} exd4
{[%clk 00:45:12]} {[%emt 00:00:22]} 5. O-O {[%clk 00:44:55]} {[%emt 00:00:28]}
Bc5 {[%clk 00:44:55]} {[%emt 00:00:28]} 6. e5 {[%clk 00:44:55]} {[%emt
00:00:10]} d5 {[%clk 00:44:42]} {[%emt 00:00:23]} 7. exf6 {[%clk 00:44:55]}
{[%emt 00:00:11]} dxc4 {[%clk 00:44:46]} {[%emt 00:00:05]} 8. fxg7 {[%clk
00:44:58]} {[%emt 00:00:07]} Rg8 {[%clk 00:44:49]} {[%emt 00:00:07]} 9. Bg5
{[%clk 00:44:55]} {[%emt 00:00:13]} Be7 {[%clk 00:42:43]} {[%emt 00:02:16]} 10.
Bxe7 {[%clk 00:44:34]} {[%emt 00:00:31]} Kxe7 {[%clk 00:42:29]} {[%emt
00:00:24]} 11. Re1+ {[%clk 00:44:34]} {[%emt 00:00:09]} Kf6 {[%clk 00:37:24]}
{[%emt 00:05:16]} 12. Nbd2 {[%clk 00:34:35]} {[%emt 00:10:09]} Be6 {[%clk
00:34:00]} {[%emt 00:03:34]} 13. b3 {[%clk 00:25:46]} {[%emt 00:08:59]} c3
{[%clk 00:30:42]} {[%emt 00:03:28]} 14. Ne4+ {[%clk 00:22:25]} {[%emt
00:03:31]} Kxg7 {[%clk 00:30:50]} {[%emt 00:00:02]} 15. Nfg5 {[%clk 00:20:30]}
{[%emt 00:02:04]} Bf5 {[%clk 00:27:38]} {[%emt 00:03:23]} 16. Qf3 {[%clk
00:18:33]} {[%emt 00:02:07]} Bg6 {[%clk 00:22:26]} {[%emt 00:05:22]} 17. Rad1
{[%clk 00:13:50]} {[%emt 00:04:52]} Nb4 {[%clk 00:19:23]} {[%emt 00:03:13]} 18.
Qf4 {[%clk 00:12:30]} {[%emt 00:01:30]} Re8 {[%clk 00:18:27]} {[%emt 00:01:07]}
19. Ng3 {[%clk 00:06:35]} {[%emt 00:06:05]} Rxe1+ {[%clk 00:16:22]} {[%emt
00:02:15]} 20. Rxe1 {[%clk 00:06:44]} Qf6 {[%clk 00:15:27]} {[%emt 00:01:05]}
21. Qg4 {[%clk 00:04:47]} {[%emt 00:02:07]} Nxc2 {[%clk 00:15:01]} {[%emt
00:00:37]} 22. Rc1 {[%clk 00:01:56]} {[%emt 00:03:00]} d3 {[%clk 00:14:44]}
{[%emt 00:00:28]} 23. N5e4 {[%clk 00:01:42]} {[%emt 00:00:24]} Qe5 {[%clk
00:14:28]} {[%emt 00:00:26]} 24. f4 {[%clk 00:00:14]} {[%emt 00:01:38]} Qd4+
{[%clk 00:14:35]} {[%emt 00:00:02]} 25. Kh1 {[%clk 00:00:23]} {[%emt 00:00:02]}
d2 {[%clk 00:14:09]} {[%emt 00:00:36]} 26. Rf1 {[%clk 00:00:15]} {[%emt
00:00:18]} Ne3 {[%clk 00:14:03]} {[%emt 00:00:15]} 27. Qg5 {[%clk 00:00:11]}
{[%emt 00:00:14]} d1=Q {[%clk 00:13:28]} {[%emt 00:00:45]} 0-1